Workbook

Sheet 第3号様式 実施計画書
A1: 第３号様式
G3: 事業番号
A5: 令和７年度ジュニア育成地域推進事業実施計画書
E7: 地区体育･ｽﾎﾟｰﾂ協会等名 | F7: 瑞穂町スポーツ協会
E9: 主管団体名
B11: 事 項 | C11: 内 容
B12: １事業名称
B13: 競技名 （競技事業の時に記入） | C13: 陸上
C14: （１）競技事業
B15: 事業区分 | C15: 教室 大会 強化練習 指導者養成研修
B16: （1つのみ☑） | C16: （２）ネットワーク構築活用事業
C17: 連絡協議会 指導者連絡会 種目間交流 啓発
B18: 新規・継続 | C18: 新規企画事業 既存事業を再構築
B19: （1つのみ☑） | C19: 昨年度ジュニア育成地域推進事業として実施した事業
B20: ２実施期間（日時） ※時間も記入 | G20: 実施日数 日間
B21: ３会場
B22: ４参加予定数 | C22: 教室・大会・強化練習 | E22: 未就学児 名、小学生 名
E23: 中学生 名、高校生 名
C24: 指導者養成研修･連絡協議会･指導者連絡会 | E24: 指導者・地区スポーツ関係者 名
C26: 種目間講習 | E26: 未就学児 名、小学生 名、中学生 名、
B27: ※事業区分に応じた参加者対象者数 | E27: 高校生 名、指導者・地区スポーツ関係者 名
B28: ※実人数で記入 | C28: 啓発 | E28: 未就学児 名、小学生 名、中学生 名、
E29: 高校生 名、指導者・地区スポーツ関係者 名、
E30: 保護者 名
B31: ５運営予定数 | C31: 指導者・講師 名（ 名）、審判員・役員 名（ 名）、
B32: ※（ ）には謝金支払者数を記入
C33: 著名指導者・特別講師 名（ 名）、医師・看護師 名（ 名）、
C34: 補助指導者・補助役員 名（ 名）、委員 名（ 名）
B35: ６募集方法
B36: ７ 具体的な事業 、内容、事業目的、期待される効果
B37: ８備考 | C37: その他主催者名（ ） → 経費負担 □有、□無

Sheet 第4号様式 収支予算書（事業別）
A1: 第４号様式
A2: 令和７年度ジュニア育成地域推進事業 収支予算書
J3: 事業番号
B4: 事 業 名
B6: 地区体育・ｽﾎﾟｰﾂ協会等名 | D6: 瑞穂町スポーツ協会 | E6: 主管団体名
A7: ＜収入＞
A8: 科目 | B8: 金額 | D8: 内 容 | K8: 備 考
A9: １ 分担金 | C9: 円 | D9: 東京都分担金
A10: ２ 負担金 | C10: 円
A11: ３ その他 | C11: 円
A12: 合 計 | B12: =SUM(B9:B11) -> 0 | C12: 円
A13: ＜支出＞ | B13: =IF(B9-B44<>0,"分担金の収支が一致しておりません （"&ABS(B9-B44)&"円分）",IF(B12-B50<>0,"全体の収支が一致しておりません （"&ABS(B12-B50)&"円分）","")) -> 
A14: 科目 | B14: 金額 | D14: 内 容 | M14: 計
A15: １ 謝金等 | B15: =SUM(M15:M20) -> 0 | C15: 円 | E15: @ | G15: × | J15: × | L15: 回 | M15: =F15*H15*K15 -> 0 | N15: 円
E16: @ | G16: × | J16: × | L16: 回 | M16: 0 | N16: 円
E17: @ | G17: × | J17: × | L17: 回 | M17: 0 | N17: 円
E18: @ | G18: × | J18: × | L18: 回 | M18: 0 | N18: 円
E19: @ | G19: × | J19: × | L19: 回 | M19: 0 | N19: 円
E20: @ | G20: × | J20: × | L20: 回 | M20: 0 | N20: 円
A21: ２ 交通費 | B21: =SUM(M21:M24) -> 0 | C21: 円 | E21: @ | G21: × | J21: × | L21: 回 | M21: 0 | N21: 円
E22: @ | G22: × | J22: × | L22: 回 | M22: 0 | N22: 円
E23: @ | G23: × | J23: × | L23: 回 | M23: 0 | N23: 円
E24: @ | G24: × | J24: × | L24: 回 | M24: 0 | N24: 円
A25: ３ 宿泊費 | B25: =SUM(M25:M26) -> 0 | C25: 円 | E25: @ | G25: × | J25: × | L25: 回 | M25: =F25*H25*K25 -> 0 | N25: 円
E26: @ | G26: × | J26: × | L26: 回 | M26: =F26*H26*K26 -> 0 | N26: 円
A27: ４ 印刷製本費 | B27: =SUM(M27:M28) -> 0 | C27: 円 | E27: @ | G27: × | J27: × | L27: 回 | M27: 0 | N27: 円
E28: @ | G28: × | J28: × | L28: 回 | M28: 0 | N28: 円
A29: ５ 消耗品費 | B29: =SUM(M29:M34) -> 0 | C29: 円 | E29: @ | G29: × | J29: × | L29: 回 | M29: 0 | N29: 円
E30: @ | G30: × | J30: × | L30: 回 | M30: 0 | N30: 円
E31: @ | G31: × | J31: × | L31: 回 | M31: =F31*H31*K31 -> 0 | N31: 円
E32: @ | G32: × | J32: × | L32: 回 | M32: =F32*H32*K32 -> 0 | N32: 円
E33: @ | G33: × | J33: × | L33: 回 | M33: 0 | N33: 円
E34: @ | G34: × | J34: × | L34: 回 | M34: 0 | N34: 円
A35: ６ 使用料・借上料 | B35: =SUM(M35:M36) -> 0 | C35: 円 | E35: @ | G35: × | J35: × | L35: 回 | M35: 0 | N35: 円
E36: @ | G36: × | J36: × | L36: 回 | M36: 0 | N36: 円
A37: ７ 通信運搬費 | B37: =SUM(M37:M38) -> 0 | C37: 円 | E37: @ | G37: × | J37: × | L37: 回 | M37: 0 | N37: 円
E38: @ | G38: × | J38: × | L38: 回 | M38: 0 | N38: 円
A39: ８ 保険料 | B39: =SUM(M39:M40) -> 0 | C39: 円 | E39: @ | G39: × | J39: × | L39: 回 | M39: 0 | N39: 円
E40: @ | G40: × | J40: × | L40: 回 | M40: 0 | N40: 円
A41: ９ 雑役務費 | B41: =SUM(M41:M43) -> 0 | C41: 円 | E41: @ | G41: × | J41: × | L41: 回 | M41: 0 | N41: 円
E42: @ | G42: × | J42: × | L42: 回 | M42: 0 | N42: 円
E43: @ | G43: × | J43: × | L43: 回 | M43: 0 | N43: 円
A44: 分担金支出 計 | B44: =SUM(B15:B43) -> 0 | C44: 円
A45: 10 分担金以外で支出するもの | B45: =SUM(M45:M49) -> 0 | C45: 円 | E45: @ | G45: × | J45: × | L45: 回 | M45: =F45*H45*K45 -> 0 | N45: 円
E46: @ | G46: × | J46: × | L46: 回 | M46: =F46*H46*K46 -> 0 | N46: 円
E47: @ | G47: × | J47: × | L47: 回 | M47: =F47*H47*K47 -> 0 | N47: 円
E48: @ | G48: × | J48: × | L48: 回 | M48: =F48*H48*K48 -> 0 | N48: 円
E49: @ | G49: × | J49: × | L49: 回 | M49: =F49*H49*K49 -> 0 | N49: 円
A50: 合 計 | B50: =B45+B44 -> 0 | C50: 円

Sheet 第4号様式【記入例】
A1: 第4号様式
A2: 令和○○年度ジュニア育成地域推進事業 収支予算書 【記入例】
J3: 事業番号
B4: 事業名 | D4: 〇〇教室
B6: 地区体育・ｽﾎﾟｰﾂ協会等名 | D6: 〇〇スポーツ協会 | E6: 主管団体名 | H6: 〇〇連盟
A7: ＜収入＞
A8: 科目 | B8: 金額 | D8: 内 容 | K8: 備 考
A9: 1 分 担 金 | B9: 150000 | C9: 円 | D9: 東京都分担金
A10: 2 負 担 金 | B10: 50000 | C10: 円 | D10: 〇〇体育協会負担
A11: 3 そ の 他 | C11: 円
A12: 合 計 | B12: =SUM(B9:B11) -> 200000 | C12: 円
A13: ＜支出＞
A14: 科目 | B14: 金額 | D14: 内 容 | M14: 計
A15: １ 謝金等 | B15: =SUM(M15:M20) -> 100000 | C15: 円 | D15: 指導者謝礼 ※科目10有 | E15: @ | F15: 3000 | G15: × | H15: 5 | I15: 人 | J15: × | K15: 10 | L15: 回 | M15: 100000 | N15: 円
E16: @ | G16: × | J16: × | L16: 回 | M16: =F16*H16*K16 -> 0 | N16: 円
E17: @ | G17: × | J17: × | L17: 回 | M17: =F17*H17*K17 -> 0 | N17: 円
E18: @ | G18: × | J18: × | L18: 回 | M18: 0 | N18: 円
E19: @ | G19: × | J19: × | L19: 回 | M19: 0 | N19: 円
E20: @ | G20: × | J20: × | L20: 回 | M20: 0 | N20: 円
A21: ２ 交通費 | B21: =SUM(M21:M24) -> 0 | C21: 円 | E21: @ | G21: × | J21: × | L21: 回 | M21: 0 | N21: 円
E22: @ | G22: × | J22: × | L22: 回 | M22: 0 | N22: 円
E23: @ | G23: × | J23: × | L23: 回 | M23: 0 | N23: 円
E24: @ | G24: × | J24: × | L24: 回 | M24: 0 | N24: 円
A25: ３ 宿泊費 | B25: =SUM(M25:M26) -> 0 | C25: 円 | E25: @ | G25: × | J25: × | L25: 回 | M25: =F25*H25*K25 -> 0 | N25: 円
E26: @ | G26: × | J26: × | L26: 回 | M26: =F26*H26*K26 -> 0 | N26: 円
A27: ４ 印刷製本費 | B27: =SUM(M27:M28) -> 0 | C27: 円 | E27: @ | G27: × | J27: × | L27: 回 | M27: 0 | N27: 円
E28: @ | G28: × | J28: × | L28: 回 | M28: 0 | N28: 円
A29: ５ 消耗品費 | B29: =SUM(M29:M34) -> 11700 | C29: 円 | D29: 医薬品 | E29: @ | F29: 1700 | G29: × | H29: 1 | J29: × | K29: 1 | L29: 回 | M29: 1700 | N29: 円
D30: 熱中症予防飲料 | E30: @ | F30: 200 | G30: × | H30: 5 | I30: 本 | J30: × | K30: 10 | L30: 回 | M30: 10000 | N30: 円
E31: @ | G31: × | J31: × | L31: 回 | M31: =F31*H31*K31 -> 0 | N31: 円
E32: @ | G32: × | J32: × | L32: 回 | M32: =F32*H32*K32 -> 0 | N32: 円
E33: @ | G33: × | J33: × | L33: 回 | M33: 0 | N33: 円
E34: @ | G34: × | J34: × | L34: 回 | M34: 0 | N34: 円
A35: ６使用料・借上料 | B35: =SUM(M35:M36) -> 10000 | C35: 円 | D35: 会場使用料 | E35: @ | F35: 1000 | G35: × | H35: 1 | J35: × | K35: 10 | L35: 回 | M35: 10000 | N35: 円
E36: @ | G36: × | J36: × | L36: 回 | M36: 0 | N36: 円
A37: ７ 通信運搬費 | B37: =SUM(M37:M38) -> 800 | C37: 円 | D37: 指導者連絡用切手 | E37: @ | F37: 80 | G37: × | H37: 5 | J37: × | K37: 2 | L37: 回 | M37: 800 | N37: 円
E38: @ | G38: × | J38: × | L38: 回 | M38: 0 | N38: 円
A39: ８ 保険料 | B39: =SUM(M39:M40) -> 27500 | C39: 円 | D39: 保険料 | E39: @ | F39: 500 | G39: × | H39: 55 | I39: 人 | J39: × | K39: 1 | L39: 回 | M39: =F39*H39*K39 -> 27500 | N39: 円
E40: @ | G40: × | J40: × | L40: 回 | M40: =F40*H40*K40 -> 0 | N40: 円
A41: ９ 雑役務費 | B41: =SUM(M41:M43) -> 0 | C41: 円 | E41: @ | G41: × | J41: × | L41: 回 | M41: =F41*H41*K41 -> 0 | N41: 円
E42: @ | G42: × | J42: × | L42: 回 | M42: =F42*H42*K42 -> 0 | N42: 円
E43: @ | G43: × | J43: × | L43: 回 | M43: =F43*H43*K43 -> 0 | N43: 円
A44: 分担金支出計 | B44: =SUM(B15:B43) -> 150000 | C44: 円
A45: 10 分担金以外で支出するもの | B45: =SUM(M45:M49) -> 50000 | C45: 円 | D45: 指導者謝礼 ※科目1有 | E45: @ | F45: 3000 | G45: × | H45: 5 | I45: 人 | J45: × | K45: 10 | L45: 回 | M45: 50000 | N45: 円
E46: @ | G46: × | J46: × | L46: 回 | M46: =F46*H46*K46 -> 0 | N46: 円
E47: @ | G47: × | J47: × | L47: 回 | M47: =F47*H47*K47 -> 0 | N47: 円
E48: @ | G48: × | J48: × | L48: 回 | M48: =F48*H48*K48 -> 0 | N48: 円
E49: @ | G49: × | J49: × | L49: 回 | M49: =F49*H49*K49 -> 0 | N49: 円
A50: 合計 | B50: =B45+B44 -> 200000 | C50: 円

Sheet 第９号様式 実施計画書
A1: 第９号様式
H2: -（ ）
G3: 事業番号
A5: 令和７年度ジュニア育成地域推進事業実施計画書（特別申請用）
E7: 地区体育･ｽﾎﾟｰﾂ協会等名 | F7: 瑞穂町スポーツ協会
E9: 主管団体名
B11: 事 項 | C11: 内 容
B12: １事業名称
B13: 競技名 （競技事業の時に記入）
C14: （１）競技事業
B15: 事業区分 | C15: 教室 大会 強化練習 指導者養成研修
B16: （1つのみ☑） | C16: （２）ネットワーク構築活用事業
C17: 連絡協議会 指導者連絡会 種目間交流 啓発
B18: 新規・継続 | C18: 新規企画事業 既存事業を再構築
B19: （1つのみ☑） | C19: 昨年度ジュニア育成地域推進事業として実施した事業
B20: ２実施期間（日時） ※時間も記入 | G20: 実施日数 日間
B21: ３会場
B22: ４参加予定数 | C22: 教室・大会・強化練習 | E22: 未就学児 名、小学生 名
E23: 中学生 名、高校生 名
C24: 指導者養成研修・連絡協議会・指導者連絡会 | E24: 指導者・地区スポーツ関係者 名
C26: 種目間講習 | E26: 未就学児 名、小学生 名、中学生 名、
B27: ※事業区分に応じた参加者対象者数 | E27: 高校生 名、指導者・地区スポーツ関係者 名
B28: ※実人数で記入 | C28: 啓発 | E28: 未就学児 名、小学生 名、中学生 名、
E29: 高校生 名、指導者・地区スポーツ関係者 名、
E30: 保護者 名
B31: ５運営予定数 | C31: 指導者・講師 名（ 名）、審判員・役員 名（ 名）、
B32: ※（ ）には謝金支払者数を記入
C33: 著名指導者・特別講師 名（ 名）、医師・看護師 名（ 名）、
C34: 補助指導者・補助役員 名（ 名）、委員 名（ 名）
B35: ６募集方法
B36: ７ 具体的な事業 、内容、事業目的、期待される効果
B37: ８備考 | C37: その他主催者名（ ） → 経費負担 □有、□無

Sheet 第10号様式 【特別】収支予算書（事業別）
A1: 第10号様式
A2: 令和７年度ジュニア育成地域推進事業 収支予算書（特別申請用）
A3: （特） | J3: 優先順位
B4: 事業名
B6: 地区体育･ｽﾎﾟｰﾂ協会等名 | D6: 瑞穂町スポーツ協会 | E6: 主管団体名
A7: ＜収入＞
A8: 科目 | B8: 金額 | D8: 内 容 | K8: 備 考
A9: １ 特別申請分担金 | C9: 円 | D9: 東京都分担金（特別申請で希望する額）
A10: ２ 分 担 金 | C10: 円 | D10: 東京都分担金（第4号様式で申請した額）
A11: ３ 負 担 金 | C11: 円
A12: ４ そ の 他 | C12: 円
A13: 合 計 | B13: =SUM(B9:B12) -> 0 | C13: 円
A14: ＜支出＞
A15: 科目 | B15: 金額 | C15: ☆ | D15: 内 容 | M15: 計
A16: １ 謝金等 | B16: =SUM(M16:M21) -> 0 | E16: @ | G16: × | J16: × | L16: 回 | M16: =F16*H16*K16 -> 0 | N16: 円
E17: @ | G17: × | J17: × | L17: 回 | M17: 0 | N17: 円
E18: @ | G18: × | J18: × | L18: 回 | M18: 0 | N18: 円
E19: @ | G19: × | J19: × | L19: 回 | M19: 0 | N19: 円
E20: @ | G20: × | J20: × | L20: 回 | M20: 0 | N20: 円
E21: @ | G21: × | J21: × | L21: 回 | M21: 0 | N21: 円
A22: ２ 交通費 | B22: =SUM(M22:M25) -> 0 | E22: @ | G22: × | J22: × | L22: 回 | M22: 0 | N22: 円
E23: @ | G23: × | J23: × | L23: 回 | M23: 0 | N23: 円
E24: @ | G24: × | J24: × | L24: 回 | M24: 0 | N24: 円
E25: @ | G25: × | J25: × | L25: 回 | M25: 0 | N25: 円
A26: ３ 宿泊費 | B26: =SUM(M26:M27) -> 0 | E26: @ | G26: × | J26: × | L26: 回 | M26: =F26*H26*K26 -> 0 | N26: 円
E27: @ | G27: × | J27: × | L27: 回 | M27: =F27*H27*K27 -> 0 | N27: 円
A28: ４ 印刷製本費 | B28: =SUM(M28:M29) -> 0 | E28: @ | G28: × | J28: × | L28: 回 | M28: 0 | N28: 円
E29: @ | G29: × | J29: × | L29: 回 | M29: 0 | N29: 円
A30: ５ 消耗品費 | B30: =SUM(M30:M35) -> 0 | E30: @ | G30: × | J30: × | L30: 回 | M30: 0 | N30: 円
E31: @ | G31: × | J31: × | L31: 回 | M31: 0 | N31: 円
E32: @ | G32: × | J32: × | L32: 回 | M32: =F32*H32*K32 -> 0 | N32: 円
E33: @ | G33: × | J33: × | L33: 回 | M33: =F33*H33*K33 -> 0 | N33: 円
E34: @ | G34: × | J34: × | L34: 回 | M34: 0 | N34: 円
E35: @ | G35: × | J35: × | L35: 回 | M35: 0 | N35: 円
A36: ６ 使用料・借上料 | B36: =SUM(M36:M37) -> 0 | E36: @ | G36: × | J36: × | L36: 回 | M36: 0 | N36: 円
E37: @ | G37: × | J37: × | L37: 回 | M37: 0 | N37: 円
A38: ７ 通信運搬費 | B38: =SUM(M38:M39) -> 0 | E38: @ | G38: × | J38: × | L38: 回 | M38: 0 | N38: 円
E39: @ | G39: × | J39: × | L39: 回 | M39: 0 | N39: 円
A40: ８ 保険料 | B40: =SUM(M40:M41) -> 0 | E40: @ | G40: × | J40: × | L40: 回 | M40: =F40*H40*K40 -> 0 | N40: 円
E41: @ | G41: × | J41: × | L41: 回 | M41: =F41*H41*K41 -> 0 | N41: 円
A42: ９ 雑役務費 | B42: =SUM(M42:M44) -> 0 | E42: @ | G42: × | J42: × | L42: 回 | M42: =F42*H42*K42 -> 0 | N42: 円
E43: @ | G43: × | J43: × | L43: 回 | M43: =F43*H43*K43 -> 0 | N43: 円
E44: @ | G44: × | J44: × | L44: 回 | M44: =F44*H44*K44 -> 0 | N44: 円
A45: 分担金支出計 | B45: =SUM(B16:B44) -> 0 | D45: ＜☆項特別申請額計＞ | E45: =SUMIF(C16:C44,"☆",M16:M44) -> 0
A46: 10 分担金以外で支出するもの | B46: =SUM(M46:M50) -> 0 | C46: 円 | E46: @ | G46: × | J46: × | L46: 回 | M46: =F46*H46*K46 -> 0 | N46: 円
E47: @ | G47: × | J47: × | L47: 回 | M47: =F47*H47*K47 -> 0 | N47: 円
E48: @ | G48: × | J48: × | L48: 回 | M48: =F48*H48*K48 -> 0 | N48: 円
E49: @ | G49: × | J49: × | L49: 回 | M49: =F49*H49*K49 -> 0 | N49: 円
E50: @ | G50: × | J50: × | L50: 回 | M50: =F50*H50*K50 -> 0 | N50: 円
A51: 合 計 | B51: =B46+B45 -> 0 | C51: 円
A53: ※「分担金申請済み事業」の場合は、科目10「分担金以外で支出するもの」から科目１～９「分担金で支出するもの」に変更した項目の前に「☆」印を付けること。
A58: 確認 | B58: 収入「科目１」＝支出「☆項目計」 | E58: =B9 -> 0 | G58: － | H58: =E45 -> 0 | J58: ＝ | K58: =E58-H58 -> 0
B59: 収入「科目１」＋「科目２」＝支出「小計」 | E59: =B9+B10 -> 0 | G59: － | H59: =B45 -> 0 | J59: ＝ | K59: =E59-H59 -> 0
B60: 収入「合計」＝支出「合計｝ | E60: =B13 -> 0 | G60: － | H60: =B51 -> 0 | J60: ＝ | K60: =E60-H60 -> 0
C80: ☆

Sheet 第10号様式【記入例】
A1: 第10号様式 | B1: 令和○○年度ジュニア育成地域推進事業 収支予算書（特別申請用）【記入例）】
A3: （特） | J3: 優先順位
B4: 事業名 | D4: 〇〇教室
B6: 地区体育･ｽﾎﾟｰﾂ協会等名 | D6: 〇〇スポーツ協会 | E6: 主管団体名 | H6: 〇〇連盟
A7: ＜収入＞
A8: 科目 | B8: 金額 | D8: 内 容 | K8: 備 考
A9: １ 特別申請分担金 | B9: 59000 | C9: 円 | D9: 東京都分担金（特別申請で希望する額）
A10: ２ 分 担 金 | B10: 200000 | C10: 円 | D10: 東京都分担金（第4号様式で申請した額）
A11: ３ 負 担 金 | C11: 円
A12: ４ そ の 他 | C12: 円
A13: 合 計 | B13: =SUM(B9:B12) -> 259000 | C13: 円
A14: ＜支出＞
A15: 科目 | B15: 金額 | C15: ☆ | D15: 内 容 | M15: 計
A16: １ 謝金等 | B16: =SUM(M16:M21) -> 195000 | D16: 指導者謝礼 | E16: @ | F16: 3000 | G16: × | H16: 5 | J16: × | K16: 10 | L16: 回 | M16: =F16*H16*K16 -> 150000 | N16: 円
C17: ☆ | D17: 指導者謝礼 | E17: @ | F17: 3000 | G17: × | H17: 5 | J17: × | K17: 3 | L17: 回 | M17: 45000 | N17: 円
E18: @ | G18: × | J18: × | L18: 回 | M18: 0 | N18: 円
E19: @ | G19: × | J19: × | L19: 回 | M19: 0 | N19: 円
E20: @ | G20: × | J20: × | L20: 回 | M20: 0 | N20: 円
E21: @ | G21: × | J21: × | L21: 回 | M21: 0 | N21: 円
A22: ２ 交通費 | B22: =SUM(M22:M25) -> 0 | E22: @ | G22: × | J22: × | L22: 回 | M22: 0 | N22: 円
E23: @ | G23: × | J23: × | L23: 回 | M23: 0 | N23: 円
E24: @ | G24: × | J24: × | L24: 回 | M24: 0 | N24: 円
E25: @ | G25: × | J25: × | L25: 回 | M25: 0 | N25: 円
A26: ３ 宿泊費 | B26: =SUM(M26:M27) -> 0 | E26: @ | G26: × | J26: × | L26: 回 | M26: =F26*H26*K26 -> 0 | N26: 円
E27: @ | G27: × | J27: × | L27: 回 | M27: =F27*H27*K27 -> 0 | N27: 円
A28: ４ 印刷製本費 | B28: =SUM(M28:M29) -> 0 | E28: @ | G28: × | J28: × | L28: 回 | M28: 0 | N28: 円
E29: @ | G29: × | J29: × | L29: 回 | M29: 0 | N29: 円
A30: ５ 消耗品費 | B30: =SUM(M30:M35) -> 11700 | D30: 医薬品 | E30: @ | F30: 1700 | G30: × | H30: 1 | J30: × | K30: 1 | L30: 回 | M30: 1700 | N30: 円
D31: 熱中症予防飲料 | E31: @ | F31: 200 | G31: × | H31: 5 | I31: 本 | J31: × | K31: 10 | L31: 回 | M31: 10000 | N31: 円
E32: @ | G32: × | J32: × | L32: 回 | M32: =F32*H32*K32 -> 0 | N32: 円
E33: @ | G33: × | J33: × | L33: 回 | M33: =F33*H33*K33 -> 0 | N33: 円
E34: @ | G34: × | J34: × | L34: 回 | M34: 0 | N34: 円
E35: @ | G35: × | J35: × | L35: 回 | M35: 0 | N35: 円
A36: ６使用料・借上料 | B36: =SUM(M36:M37) -> 13000 | D36: 会場使用料 | E36: @ | F36: 1000 | G36: × | H36: 1 | J36: × | K36: 10 | L36: 回 | M36: 10000 | N36: 円
C37: ☆ | D37: 会場使用料 | E37: @ | F37: 1000 | G37: × | H37: 1 | J37: × | K37: 3 | L37: 回 | M37: 3000 | N37: 円
A38: ７ 通信運搬費 | B38: =SUM(M38:M39) -> 800 | D38: 指導者連絡用切手 | E38: @ | F38: 80 | G38: × | H38: 5 | J38: × | K38: 2 | L38: 回 | M38: 800 | N38: 円
E39: @ | G39: × | J39: × | L39: 回 | M39: 0 | N39: 円
A40: ８ 保険料 | B40: =SUM(M40:M41) -> 38500 | D40: 保険料 | E40: @ | F40: 500 | G40: × | H40: 55 | I40: 人 | J40: × | K40: 1 | L40: 回 | M40: =F40*H40*K40 -> 27500 | N40: 円
C41: ☆ | D41: 保険料 | E41: @ | F41: 200 | G41: × | H41: 55 | J41: × | K41: 1 | L41: 回 | M41: =F41*H41*K41 -> 11000 | N41: 円
A42: ９ 雑役務費 | B42: =SUM(M42:M44) -> 0 | E42: @ | G42: × | J42: × | L42: 回 | M42: =F42*H42*K42 -> 0 | N42: 円
E43: @ | G43: × | J43: × | L43: 回 | M43: =F43*H43*K43 -> 0 | N43: 円
E44: @ | G44: × | J44: × | L44: 回 | M44: =F44*H44*K44 -> 0 | N44: 円
A45: 分担金支出計 | B45: =SUM(B16:B44) -> 259000 | D45: ＜☆項特別申請額計＞ | E45: =SUMIF(C16:C44,"☆",M16:M44) -> 59000
A46: 10 分担金以外で支出するもの | B46: =SUM(M46:M50) -> 0 | C46: 円 | E46: @ | G46: × | J46: × | L46: 回 | M46: =F46*H46*K46 -> 0 | N46: 円
E47: @ | G47: × | J47: × | L47: 回 | M47: =F47*H47*K47 -> 0 | N47: 円
E48: @ | G48: × | J48: × | L48: 回 | M48: =F48*H48*K48 -> 0 | N48: 円
E49: @ | G49: × | J49: × | L49: 回 | M49: =F49*H49*K49 -> 0 | N49: 円
E50: @ | G50: × | J50: × | L50: 回 | M50: =F50*H50*K50 -> 0 | N50: 円
A51: 合計 | B51: =B46+B45 -> 259000 | C51: 円
A53: ※「分担金申請済み事業」の場合は、既に作成済みの第4号様式の内容から、科目10「分担金以外で支出するもの」から科目１～９「分担金で支出するもの」に変更した項目の前に「☆」印を付けること。
A58: 確認 | B58: 収入「科目１」＝支出「☆項目計」 | E58: =B9 -> 59000 | G58: － | H58: =E45 -> 59000 | J58: ＝ | K58: =E58-H58 -> 0
B59: 収入「科目１」＋「科目２」＝支出「小計」 | E59: =B9+B10 -> 259000 | G59: － | H59: =B45 -> 259000 | J59: ＝ | K59: =E59-H59 -> 0
B60: 収入「合計」＝支出「合計｝ | E60: =B13 -> 259000 | G60: － | H60: =B51 -> 259000 | J60: ＝ | K60: =E60-H60 -> 0
C80: ☆
